fUSD/lending_fUSD_20240122
["ID","MTS","AMOUNT","RATE_DAILY","PERIOD"]
[312502506,1705935111807,-2822.45,0.00054794,120]
[312502507,1705935111834,-500.0,0.00054794,120]
[312502508,1705935111859,-1151.76,0.00054794,120]
[312502509,1705935111884,-1147.57,0.00054794,120]
[312502510,1705935111910,-500.0,0.00054794,120]
[312502511,1705935111940,-504.79,0.00054794,120]
[312502512,1705935111968,-828.94,0.00054794,120]
[312502513,1705935111993,-500.0,0.00054794,120]
[312502514,1705935112019,-1921.76,0.00054794,120]
[312502515,1705935112044,-500.0,0.00054794,120]
[312502516,1705935112069,-517.22,0.00054794,120]
[312502517,1705935112093,-836.23,0.00054794,120]
[312502518,1705935112119,-500.0,0.00054794,120]
[312502519,1705935112144,-500.0,0.00054794,120]
[312502520,1705935112167,-500.0,0.00054794,120]
[312502521,1705935112192,-859.23,0.00054794,120]
[312502522,1705935112217,-4628.55417818,0.00054794,120]
[312502523,1705935112241,-500.0,0.00054794,120]
[312502524,1705935112266,-2987.07,0.00054794,120]
[312502525,1705935112303,-500.0,0.00054794,120]
[312502526,1705935112339,-1485.29,0.00054794,120]
[312502527,1705935112371,-500.0,0.00054794,120]
[312502528,1705935112409,-1113.39,0.00054794,120]
[312502529,1705935112444,-699.12,0.00054794,120]
[312502530,1705935112473,-500.0,0.00054794,120]
[312502531,1705935112506,-1325.84,0.00054794,120]
[312502532,1705935112537,-610.32,0.00054794,120]
[312502533,1705935112570,-500.0,0.00054794,120]
[312502534,1705935112602,-500.0,0.00054794,120]
[312502535,1705935112637,-498.76126818,0.00054794,120]
[312502536,1705935112669,-680.84,0.00054794,120]
[312502537,1705935112701,-977.5,0.00054794,120]
[312502538,1705935112736,-1197.96,0.00054794,120]
[312502539,1705935112772,-1447.9,0.00054794,120]
[312502540,1705935112803,-500.0,0.00054794,120]
[312502541,1705935112837,-6620.65,0.00054794,120]
[312502542,1705935112870,-768.63,0.00054794,120]
[312502543,1705935112902,-4857.5,0.00054794,120]
[312502544,1705935112932,-2086.5,0.00054794,120]
[312502545,1705935112962,-500.0,0.00054794,120]
[312502546,1705935112993,-500.0,0.00054794,120]
[312502547,1705935113024,-1199.49,0.00054794,120]
[312502548,1705935113055,-500.0,0.00054794,120]
[312502549,1705935113090,-500.0,0.00054794,120]
[312502550,1705935113122,-2054.67,0.00054794,120]
[312502551,1705935113152,-500.0,0.00054794,120]
[312502552,1705935113184,-500.0,0.00054794,120]
[312502553,1705935113218,-886.41,0.00054794,120]
[312502554,1705935113250,-500.0,0.00054794,120]
[312502555,1705935113283,-519.19,0.00054794,120]
[312502556,1705935113317,-500.0,0.00054794,120]
[312502557,1705935113347,-295.14640702,0.00054794,120]
[312502558,1705935113376,-500.0,0.00054794,120]
[312502559,1705935113406,-10248.86,0.00054794,120]
[312502560,1705935113435,-500.0,0.00054794,120]
[312502561,1705935113464,-1103.75,0.00054794,120]
[312502562,1705935113492,-500.0,0.00054794,120]
[312502563,1705935113522,-751.87,0.00054794,120]
[312502564,1705935113553,-3237.18,0.00054794,120]
[312502565,1705935113582,-789.59,0.00054794,120]
[312502566,1705935113613,-2009.92,0.00054794,120]
[312502567,1705935113642,-685.82,0.00054794,120]
[312502568,1705935113672,-500.0,0.00054794,120]
[312502569,1705935113701,-4264.33,0.00054794,120]
[312502570,1705935113729,-964.24,0.00054794,120]
[312502571,1705935113757,-1535.34,0.00054794,120]
[312502572,1705935113786,-500.0,0.00054794,120]
[312502573,1705935113817,-809.7,0.00054794,120]
[312502574,1705935113845,-1154.09,0.00054794,120]
[312502575,1705935113874,-1697.89,0.00054794,120]
[312502576,1705935113905,-1595.7,0.00054794,120]
[312502577,1705935113936,-1596.19,0.00054794,120]
[312502578,1705935113968,-1526.78797216,0.00054794,120]
[312502579,1705935113998,-1154.51,0.00054794,120]
[312502580,1705935114029,-500.0,0.00054794,120]
[312502581,1705935114057,-500.0,0.00054794,120]
[312502582,1705935114087,-500.0,0.00054794,120]
[312502583,1705935114116,-500.0,0.00054794,120]
[312502584,1705935114145,-500.0,0.00054794,120]
[312502585,1705935114174,-1552.88,0.00054794,120]
[312502586,1705935114204,-2914.21,0.00054794,120]
[312502587,1705935114231,-608.04,0.00054794,120]
[312502588,1705935114260,-500.0,0.00054794,120]
[312502589,1705935114289,-700.43,0.00054794,120]
[312502590,1705935114322,-500.0,0.00054794,120]
[312502591,1705935114351,-980.8,0.00054794,120]
[312502592,1705935114381,-1757.28,0.00054794,120]
[312502593,1705935114411,-696.01,0.00054794,120]
[312502594,1705935114440,-1171.38,0.00054794,120]
[312502595,1705935114469,-500.0,0.00054794,120]
[312502596,1705935114497,-665.51,0.00054794,120]
[312502597,1705935115082,-1708.66,0.00054794,120]
[312502598,1705935115145,-500.0,0.00054794,120]
[312502599,1705935115170,-500.0,0.00054794,120]
[312502600,1705935115197,-559.65,0.00054794,120]
[312502601,1705935115222,-500.0,0.00054794,120]
[312502602,1705935115247,-1273.88,0.00054794,120]
[312502603,1705935115271,-500.0,0.00054794,120]
[312502604,1705935115299,-500.0,0.00054794,120]
[312502605,1705935115323,-536.79,0.00054794,120]
[312502606,1705935115347,-520.77,0.00054794,120]
[312502607,1705935115371,-714.84,0.00054794,120]
[312502608,1705935115395,-1047.69,0.00054794,120]
[312502609,1705935115419,-500.0,0.00054794,120]
[312502610,1705935115445,-1774.41,0.00054794,120]
[312502611,1705935115469,-4028.12084899,0.000548,120]
[312502612,1705935115493,-3000.0,0.000548,73]
[312502613,1705935115517,-612.551946,0.000548,33]
[312502614,1705935115541,-150.0,0.000548,33]
[312502615,1705935115568,-3000.0,0.0005481,73]
[312502616,1705935115592,-500.0,0.00054814,120]
[312502617,1705935115617,-5495.68539,0.0005482,73]
[312502618,1705935115640,-150.0,0.00054822,120]
[312502619,1705935115666,-150.0,0.00054822,120]
[312502620,1705935115691,-151.0352934,0.00054829,60]
[312502621,1705935115717,-1500.0,0.000549,60]
[312502622,1705935115746,-100000.0,0.00055,45]
[312502623,1705935115771,-797.05290804,0.00055,120]
[312502624,1705935115800,-459.2711357,0.00055,120]
[312502625,1705935115827,-300.0,0.00055,34]
[312502626,1705935115851,-170.0,0.00055,120]
[312502627,1705935115875,-1972.734319,0.00055,40]
[312502628,1705935115900,-1000000.0,0.00055,120]
[312502629,1705935115926,-1000000.0,0.00055,120]
[312502630,1705935115953,-5747.842695,0.00055,73]
[312502631,1705935115978,-305.982165,0.00055,40]
[312502632,1705935116006,-150.40437152,0.0005502,63]
[312502633,1705935116032,-908.82,0.0005504,120]
[312502634,1705935116058,-908.82,0.00055055,120]
[312502635,1705935116082,-240.0,0.00055068,120]
[312502636,1705935116105,-500.0,0.00055068,120]
[312502637,1705935116129,-500.0,0.00055068,120]
[312502638,1705935116154,-500.0,0.00055068,120]
[312502639,1705935116179,-500.0,0.00055068,120]
[312502640,1705935116205,-562.44,0.00055068,120]
[312502641,1705935116231,-500.0,0.00055068,120]
[312502642,1705935116255,-528.59162798,0.00055068,120]
[312502643,1705935116282,-500.0,0.00055068,120]
[312502644,1705935116309,-748.98,0.00055068,120]
[312502645,1705935116334,-589.84,0.00055068,120]
[312502646,1705935116359,-500.0,0.00055068,120]
[312502647,1705935116384,-500.0,0.00055068,120]
[312502648,1705935116408,-500.0,0.00055068,120]
[312502649,1705935116433,-500.0,0.00055068,120]
[312502650,1705935116458,-500.0,0.00055068,120]
[312502651,1705935116483,-586.98,0.00055068,120]
[312502652,1705935116507,-501.26,0.00055068,120]
[312502653,1705935116532,-500.0,0.00055068,120]
[312502654,1705935116557,-525.52306365,0.00055068,120]
[312502655,1705935116582,-500.0,0.00055068,120]
[312502656,1705935116606,-500.0,0.00055068,120]
[312502657,1705935116631,-1144.19,0.00055068,120]
[312502658,1705935116657,-500.0,0.00055068,120]
[312502659,1705935116682,-500.0,0.00055068,120]
[312502660,1705935116707,-500.0,0.00055068,120]
[312502661,1705935116731,-500.0,0.00055068,120]
[312502662,1705935116755,-500.0,0.00055068,120]
[312502663,1705935116780,-500.0,0.00055068,120]
[312502664,1705935116807,-500.0,0.00055068,120]
[312502665,1705935116831,-500.0,0.00055068,120]
[312502666,1705935116855,-559.06,0.00055068,120]
[312502667,1705935116879,-500.0,0.00055068,120]
[312502668,1705935116903,-500.0,0.00055068,120]
[312502669,1705935116928,-513.2532689,0.00055068,120]
[312502670,1705935116952,-500.0,0.00055068,120]
[312502671,1705935116978,-500.0,0.00055068,120]
[312502672,1705935117003,-500.0,0.00055068,120]
[312502673,1705935117029,-500.0,0.00055068,120]
[312502674,1705935117055,-500.0,0.00055068,120]
[312502675,1705935117079,-500.0,0.00055068,120]
[312502676,1705935117103,-500.0,0.00055068,120]
[312502677,1705935117127,-500.0,0.00055068,120]
[312502678,1705935117151,-500.0,0.00055068,120]
[312502679,1705935117175,-244.21187129,0.00055068,120]
[312502680,1705935117200,-500.0,0.00055068,120]
[312502681,1705935117224,-500.0,0.00055068,120]
[312502682,1705935117248,-500.0,0.00055068,120]
[312502683,1705935117273,-500.0,0.00055068,120]
[312502684,1705935117302,-626.59,0.00055068,120]
[312502685,1705935117329,-500.0,0.00055068,120]
[312502686,1705935117354,-551.71,0.00055068,120]
[312502687,1705935117379,-500.0,0.00055068,120]
[312502688,1705935117403,-500.0,0.00055068,120]
[312502689,1705935117427,-526.82186216,0.00055068,120]
[312502690,1705935117451,-500.0,0.00055068,120]
[312502691,1705935117476,-416.22237375,0.00055068,120]
[312502692,1705935117501,-500.0,0.00055068,120]
[312502693,1705935117526,-182.48527671,0.00055068,120]
[312502694,1705935117551,-500.0,0.00055068,120]
[312502695,1705935117575,-500.0,0.00055068,120]
[312502696,1705935117601,-500.0,0.00055068,120]
[312502697,1705935117792,-500.0,0.00055068,120]
[312502698,1705935117821,-500.0,0.00055068,120]
[312502699,1705935117846,-500.0,0.00055068,120]
[312502700,1705935117872,-500.0,0.00055068,120]
[312502701,1705935117899,-500.0,0.00055068,120]
[312502702,1705935117923,-500.0,0.00055068,120]
[312502703,1705935117948,-500.0,0.00055068,120]
[312502704,1705935117972,-334.18485964,0.00055068,120]
[312502705,1705935117997,-500.0,0.00055068,120]
[312502706,1705935118023,-536.79855245,0.00055068,120]
[312502707,1705935118046,-711.06,0.00055068,120]
[312502708,1705935118073,-714.27,0.00055068,120]
[312502709,1705935118098,-918.11,0.00055068,120]
[312502710,1705935118122,-500.0,0.00055068,120]
[312502711,1705935118147,-500.0,0.00055068,120]
[312502712,1705935118172,-531.58552934,0.00055068,120]
[312502713,1705935118197,-500.0,0.00055068,120]
[312502714,1705935118221,-500.0,0.00055068,120]
[312502715,1705935118245,-500.0,0.00055068,120]
[312502716,1705935118269,-475.37630135,0.00055068,120]
[312502717,1705935118293,-687.84,0.00055068,120]
[312502718,1705935118320,-500.0,0.00055068,120]
[312502719,1705935118344,-487.93526412,0.00055068,120]
[312502720,1705935118368,-500.0,0.00055068,120]
[312502721,1705935118394,-587.61,0.00055068,120]
[312502722,1705935118418,-500.0,0.00055068,120]
[312502723,1705935118442,-500.0,0.00055068,120]
[312502724,1705935118465,-500.0,0.00055068,120]
[312502725,1705935118490,-500.0,0.00055068,120]
[312502726,1705935118516,-882.35,0.00055068,120]
[312502727,1705935118539,-831.94,0.00055068,120]
[312502728,1705935118565,-500.0,0.00055068,120]
[312502729,1705935118588,-1066.83,0.00055068,120]
[312502730,1705935118613,-506.4,0.00055068,120]
[312502731,1705935118636,-500.0,0.00055068,120]
[312502732,1705935118661,-500.0,0.00055068,120]
[312502733,1705935118685,-500.0,0.00055068,120]
[312502734,1705935118710,-692.09,0.00055068,120]
[312502735,1705935118734,-500.0,0.00055068,120]
[312502736,1705935118758,-500.0,0.00055068,120]
[312502737,1705935118783,-500.0,0.00055068,120]
[312502738,1705935118808,-325.15788247,0.00055068,120]
[312502739,1705935118832,-507.42198784,0.00055068,120]
[312502740,1705935118856,-500.0,0.00055068,120]
[312502741,1705935118881,-548.63,0.00055068,120]
[312502742,1705935118907,-500.0,0.00055068,120]
[312502743,1705935118932,-500.0,0.00055068,120]
[312502744,1705935118958,-726.93,0.00055068,120]
[312502745,1705935118983,-533.44,0.00055068,120]
[312502746,1705935119011,-801.5,0.00055068,120]
[312502747,1705935119037,-500.0,0.00055068,120]
[312502748,1705935119063,-500.0,0.00055068,120]
[312502749,1705935119101,-500.0,0.00055068,120]
[312502750,1705935119128,-500.0,0.00055068,120]
[312502751,1705935119155,-500.0,0.00055068,120]
[312502752,1705935119182,-500.0,0.00055068,120]
[312502753,1705935119209,-611.15693825,0.00055068,120]
[312502754,1705935119236,-500.0,0.00055068,120]
[312502755,1705935119264,-500.0,0.00055068,120]
[312502756,1705935119293,-283.68375953,0.00055068,120]
[312502757,1705935119322,-500.0,0.00055068,120]
[312502758,1705935119348,-500.0,0.00055068,120]
[312502759,1705935119376,-517.9,0.00055068,120]
[312502760,1705935119403,-500.0,0.00055068,120]
[312502761,1705935119431,-500.0,0.00055068,120]
[312502762,1705935119458,-500.0,0.00055068,120]
[312502763,1705935119485,-500.0,0.00055068,120]
[312502764,1705935119512,-539.03,0.00055068,120]
[312502765,1705935119537,-500.0,0.00055068,120]
[312502766,1705935119562,-500.0,0.00055068,120]
[312502767,1705935119587,-500.0,0.00055068,120]
[312502768,1705935119612,-283.8772339,0.00055068,120]
[312502769,1705935119636,-500.0,0.00055068,120]
[312502770,1705935119662,-500.0,0.00055068,120]
[312502771,1705935119687,-500.0,0.00055068,120]
[312502772,1705935119718,-541.94,0.00055068,120]
[312502773,1705935119744,-500.0,0.00055068,120]
[312502774,1705935119771,-628.32,0.00055068,120]
[312502775,1705935119798,-500.0,0.00055068,120]
[312502776,1705935119829,-599.06252905,0.00055068,120]
[312502777,1705935119856,-500.0,0.00055068,120]
[312502778,1705935119883,-500.0,0.00055068,120]
[312502779,1705935119909,-1064.71,0.00055068,120]
[312502780,1705935119936,-500.0,0.00055068,120]
[312502781,1705935119964,-500.0,0.00055068,120]
[312502782,1705935119990,-500.0,0.00055068,120]
[312502783,1705935120016,-500.0,0.00055068,120]
[312502784,1705935120044,-500.0,0.00055068,120]
[312502785,1705935120073,-500.0,0.00055068,120]
[312502786,1705935120100,-500.0,0.00055068,120]
[312502787,1705935120127,-500.0,0.00055068,120]
[312502788,1705935120154,-500.0,0.00055068,120]
[312502789,1705935120181,-500.0,0.00055068,120]
[312502790,1705935120208,-688.57,0.00055068,120]
[312502791,1705935120235,-524.25088007,0.00055068,120]
[312502792,1705935120262,-515.35,0.00055068,120]
[312502793,1705935120290,-500.0,0.00055068,120]
[312502794,1705935120324,-500.0,0.00055068,120]
[312502795,1705935120351,-532.26,0.00055068,120]
[312502796,1705935120377,-529.28988037,0.00055068,120]
[312502797,1705935120404,-429.58,0.00055068,120]
[312502798,1705935120433,-500.0,0.00055068,120]
[312502799,1705935120466,-500.0,0.00055068,120]
[312502800,1705935120496,-500.0,0.00055068,120]
[312502801,1705935120524,-578.18186936,0.00055068,120]
[312502802,1705935120809,-500.0,0.00055068,120]
[312502803,1705935120837,-511.93,0.00055068,120]
[312502804,1705935120865,-521.4330393,0.00055068,120]
[312502805,1705935120892,-285.24721225,0.00055068,120]
[312502806,1705935120919,-500.0,0.00055068,120]
[312502807,1705935120945,-572.75425115,0.00055068,120]
[312502808,1705935120973,-852.71,0.00055068,120]
[312502809,1705935121000,-500.0,0.00055068,120]
[312502810,1705935121025,-520.80163692,0.00055068,120]
[312502811,1705935121055,-500.0,0.00055068,120]
[312502812,1705935121081,-500.0,0.00055068,120]
[312502813,1705935121107,-500.0,0.00055068,120]
[312502814,1705935121132,-500.0,0.00055068,120]
[312502815,1705935121157,-500.0,0.00055068,120]
[312502816,1705935121183,-500.0,0.00055068,120]
[312502817,1705935121209,-500.0,0.00055068,120]
[312502818,1705935121235,-500.0,0.00055068,120]
[312502819,1705935121261,-500.0,0.00055068,120]
[312502820,1705935121290,-460.35775599,0.00055068,120]
[312502821,1705935121314,-500.0,0.00055068,120]
[312502822,1705935121340,-749.91,0.00055068,120]
[312502823,1705935121368,-1191.21,0.00055068,120]
[312502824,1705935121393,-500.0,0.00055068,120]
[312502825,1705935121418,-500.0,0.00055068,120]
[312502826,1705935121443,-500.0,0.00055068,120]
[312502827,1705935121468,-865.73,0.00055068,120]
[312502828,1705935121492,-500.0,0.00055068,120]
[312502829,1705935121516,-512.0121676,0.00055068,120]
[312502830,1705935121542,-706.74,0.00055068,120]
[312502831,1705935121567,-500.0,0.00055068,120]
[312502832,1705935121592,-500.0,0.00055068,120]
[312502833,1705935121617,-1450.12,0.00055068,120]
[312502834,1705935121643,-681.22,0.00055068,120]
[312502835,1705935121667,-500.0,0.00055068,120]
[312502836,1705935121692,-1062.77,0.00055068,120]
[312502837,1705935121718,-547.64,0.00055068,120]
[312502838,1705935121744,-756.07,0.00055068,120]
[312502839,1705935121768,-509.74785489,0.00055068,120]
[312502840,1705935121792,-500.0,0.00055068,120]
[312502841,1705935121817,-500.0,0.00055068,120]
[312502842,1705935121842,-542.94745611,0.00055068,120]
[312502843,1705935121869,-520.16,0.00055068,120]
[312502844,1705935121894,-978.9,0.00055068,120]
[312502845,1705935121922,-1020.07,0.00055068,120]
[312502846,1705935121949,-500.0,0.00055068,120]
[312502847,1705935121976,-500.0,0.00055068,120]
[312502848,1705935122002,-1380.88,0.00055068,120]
[312502849,1705935122028,-500.0,0.00055068,120]
[312502850,1705935122056,-922.01,0.00055068,120]
[312502851,1705935122083,-500.0,0.00055068,120]
[312502852,1705935122112,-570.7,0.00055068,120]
[312502853,1705935122142,-500.0,0.00055068,120]
[312502854,1705935122170,-680.6,0.00055068,120]
[312502855,1705935122198,-500.0,0.00055068,120]
[312502856,1705935122225,-500.0,0.00055068,120]
[312502857,1705935122253,-500.0,0.00055068,120]
[312502858,1705935122283,-1255.4,0.00055068,120]
[312502859,1705935122312,-500.0,0.00055068,120]
[312502860,1705935122337,-1221.5,0.00055068,120]
[312502861,1705935122364,-500.0,0.00055068,120]
[312502863,1705935122389,-500.0,0.00055068,120]
[312502864,1705935122415,-809.51,0.00055068,120]
[312502865,1705935122440,-500.0,0.00055068,120]
[312502866,1705935122470,-1170.01,0.00055068,120]
[312502867,1705935122498,-500.0,0.00055068,120]
[312502868,1705935122523,-1447.81,0.00055068,120]
[312502869,1705935122548,-500.0,0.00055068,120]
[312502870,1705935122575,-1726.87,0.00055068,120]
[312502871,1705935122600,-2684.03,0.00055068,120]
[312502872,1705935122626,-500.0,0.00055068,120]
[312502873,1705935122650,-970.29,0.00055068,120]
[312502874,1705935122675,-500.0,0.00055068,120]
[312502875,1705935122699,-791.47,0.00055068,120]
[312502876,1705935122724,-709.57,0.00055068,120]
[312502877,1705935122749,-500.0,0.00055068,120]
[312502878,1705935122774,-500.0,0.00055068,120]
[312502879,1705935122798,-556.49,0.00055068,120]
[312502880,1705935122825,-1387.83,0.00055068,120]
[312502881,1705935122848,-500.0,0.00055068,120]
[312502882,1705935122873,-717.18,0.00055068,120]
[312502883,1705935122900,-685.25,0.00055068,120]
[312502884,1705935122927,-1397.88,0.00055068,120]
[312502885,1705935122953,-1037.49,0.00055068,120]
[312502886,1705935122980,-610.22,0.00055068,120]
[312502887,1705935123005,-500.0,0.00055068,120]
[312502888,1705935123032,-937.59,0.00055068,120]
[312502889,1705935123061,-930.16,0.00055068,120]
[312502890,1705935123086,-500.0,0.00055068,120]
[312502891,1705935123112,-510.67,0.00055068,120]
[312502892,1705935123138,-721.94,0.00055068,120]
[312502893,1705935123163,-927.6,0.00055068,120]
[312502894,1705935123188,-500.0,0.00055068,120]
[312502895,1705935123213,-500.0,0.00055068,120]
[312502896,1705935123239,-1284.87,0.00055068,120]
[312502897,1705935123264,-658.41,0.00055068,120]
[312502898,1705935123292,-500.0,0.00055068,120]
[312502899,1705935123320,-500.0,0.00055068,120]
[312502900,1705935123347,-500.0,0.00055068,120]
[312502901,1705935123371,-500.0,0.00055068,120]
[312502902,1705935123395,-1324.43,0.00055068,120]
[312502903,1705935123419,-1074.78,0.00055068,120]
[312502904,1705935123444,-500.0,0.00055068,120]
[312502905,1705935123469,-854.08,0.00055068,120]
[312502906,1705935123495,-500.0,0.00055068,120]
[312502907,1705935123522,-500.0,0.00055068,120]
[312502908,1705935123725,-669.07,0.00055068,120]
[312502909,1705935123753,-810.62,0.00055068,120]
[312502910,1705935123781,-1043.64,0.00055068,120]
[312502911,1705935123810,-647.49896849,0.00055068,120]
[312502912,1705935123834,-210.81230422,0.00055068,120]
[312502913,1705935123859,-1068.91,0.00055068,120]
[312502914,1705935123886,-500.0,0.00055068,120]
[312502915,1705935123912,-1264.76,0.00055068,120]
[312502916,1705935123936,-565.47024065,0.00055068,120]
[312502917,1705935123963,-507.01597308,0.00055068,120]
[312502918,1705935123989,-500.0,0.00055068,120]
[312502919,1705935124015,-537.28,0.00055068,120]
[312502920,1705935124040,-500.0,0.00055068,120]
[312502921,1705935124067,-596.95,0.00055068,120]
[312502922,1705935124092,-500.0,0.00055068,120]
[312502923,1705935124117,-500.0,0.00055068,120]
[312502924,1705935124143,-738.6,0.00055068,120]
[312502925,1705935124168,-660.61,0.00055068,120]
[312502926,1705935124192,-500.0,0.00055068,120]
[312502927,1705935124217,-500.0,0.00055068,120]
[312502928,1705935124242,-700.4,0.00055068,120]
[312502929,1705935124268,-500.0,0.00055068,120]
[312502930,1705935124294,-821.95,0.00055068,120]
[312502931,1705935124323,-500.0,0.00055068,120]
[312502932,1705935124349,-722.7,0.00055068,120]
[312502933,1705935124374,-648.78,0.00055068,120]
[312502934,1705935124400,-764.02,0.00055068,120]
[312502935,1705935124427,-500.0,0.00055068,120]
[312502936,1705935124453,-1066.38,0.00055068,120]
[312502937,1705935124478,-2325.98,0.00055068,120]
[312502938,1705935124502,-500.0,0.00055068,120]
[312502939,1705935124527,-500.0,0.00055068,120]
[312502940,1705935124552,-1073.56,0.00055068,120]
[312502941,1705935124579,-500.0,0.00055068,120]
[312502942,1705935124607,-500.0,0.00055068,120]
[312502943,1705935124631,-972.0,0.00055068,120]
[312502944,1705935124656,-1026.23,0.00055068,120]
[312502945,1705935124681,-532.36,0.00055068,120]
[312502946,1705935124705,-500.0,0.00055068,120]
[312502948,1705935124730,-500.0,0.00055068,120]
[312502949,1705935124755,-550.00734437,0.00055068,120]
[312502950,1705935124779,-1793.95,0.00055068,120]
[312502951,1705935124804,-521.53704744,0.00055068,120]
[312502952,1705935124831,-500.0,0.00055068,120]
[312502953,1705935124856,-500.0,0.00055068,120]
[312502954,1705935124880,-500.0,0.00055068,120]
[312502955,1705935124905,-500.0,0.00055068,120]
[312502956,1705935124930,-960.21,0.00055068,120]
[312502957,1705935124956,-500.0,0.00055068,120]
[312502958,1705935124981,-1245.11,0.00055068,120]
[312502959,1705935125008,-500.0,0.00055068,120]
[312502960,1705935125035,-500.0,0.00055068,120]
[312502961,1705935125063,-500.0,0.00055068,120]
[312502962,1705935125090,-1202.84,0.00055068,120]
[312502963,1705935125116,-500.0,0.00055068,120]
[312502964,1705935125142,-674.26,0.00055068,120]
[312502965,1705935125169,-1089.12,0.00055068,120]
[312502966,1705935125197,-500.0,0.00055068,120]
[312502967,1705935125224,-500.0,0.00055068,120]
[312502968,1705935125251,-561.61831304,0.00055068,120]
[312502969,1705935125281,-1121.58,0.00055068,120]
[312502970,1705935125314,-1148.71,0.00055068,120]
[312502971,1705935125341,-782.17,0.00055068,120]
[312502972,1705935125366,-500.0,0.00055068,120]
[312502973,1705935125392,-500.0,0.00055068,120]
[312502974,1705935125419,-1269.81,0.00055068,120]
[312502975,1705935125444,-1163.79,0.00055068,120]
[312502976,1705935125469,-500.0,0.00055068,120]
[312502977,1705935125494,-500.0,0.00055068,120]
[312502978,1705935125521,-500.0,0.00055068,120]
[312502979,1705935125548,-500.0,0.00055068,120]
[312502980,1705935125576,-755.55,0.00055068,120]
[312502981,1705935125602,-500.0,0.00055068,120]
[312502982,1705935125630,-590.73,0.00055068,120]
[312502983,1705935125655,-500.0,0.00055068,120]
[312502984,1705935125681,-653.94,0.00055068,120]
[312502985,1705935125708,-500.0,0.00055068,120]
[312502986,1705935125734,-1082.1,0.00055068,120]
[312502987,1705935125760,-1119.29,0.00055068,120]
[312502988,1705935125786,-884.87,0.00055068,120]
[312502989,1705935125816,-1021.29,0.00055068,120]
[312502990,1705935125841,-590.44,0.00055068,120]
[312502991,1705935125866,-500.0,0.00055068,120]
[312502992,1705935125892,-500.0,0.00055068,120]
[312502993,1705935125917,-500.0,0.00055068,120]
[312502994,1705935125944,-557.86,0.00055068,120]
[312502995,1705935125971,-922.84,0.00055068,120]
[312502996,1705935125998,-500.0,0.00055068,120]
[312502997,1705935126026,-854.16,0.00055068,120]
[312502998,1705935126052,-500.0,0.00055068,120]
[312502999,1705935126081,-1360.93,0.00055068,120]
[312503000,1705935126106,-500.0,0.00055068,120]
[312503001,1705935126131,-612.83,0.00055068,120]
[312503002,1705935126157,-500.0,0.00055068,120]
[312503003,1705935126183,-500.0,0.00055068,120]
[312503004,1705935126208,-500.0,0.00055068,120]
[312503005,1705935126234,-763.7,0.00055068,120]
[312503006,1705935126260,-862.53,0.00055068,120]
[312503007,1705935126287,-709.99,0.00055068,120]